bitfinex/quotes_ETHUSD_20251028
["timestamp","ask_amount","ask_price","bid_price","bid_amount"]
[1761642794536,0.001,4117.0,4116.7,19.20777783]
[1761642794849,0.001,4117.0,4116.7,19.30494858]
[1761642795066,0.0092,4116.8,4116.7,19.30494858]
[1761642799769,0.01,4117.8,4117.2,3.68982298]
[1761642799930,2.42871715,4117.4,4117.3,2.56558003]
[1761642800124,6.77463295,4117.4,4117.3,0.79664965]
[1761642800326,6.87603295,4117.4,4117.3,0.79664965]
[1761642801764,3.98397613,4117.3,4116.1,3.8]
[1761642801930,0.1776,4116.2,4115.6,2.42975106]
[1761642802125,0.1776,4116.2,4115.7,3.8]
[1761642802347,0.099,4116.1,4115.8,4.205504]
[1761642802980,0.099,4116.1,4115.8,3.8]
[1761642805086,0.1776,4116.2,4115.8,3.8]
[1761642805249,2.60704809,4116.2,4115.8,3.8]
[1761642805456,2.42948682,4116.1,4115.8,3.8]
[1761642806066,2.42948682,4116.1,4115.6,0.405504]
[1761642806262,2.70703676,4116.2,4115.6,0.405504]
[1761642806471,0.2776,4116.2,4115.6,4.205504]
[1761642806673,2.42952671,4116.1,4115.5,0.405504]
[1761642808086,2.42952671,4116.1,4115.5,2.83533735]
[1761642808286,2.42952671,4116.1,4115.5,0.405504]
[1761642808651,2.7070263,4116.2,4115.5,2.83533819]
[1761642809054,2.42951309,4116.1,4115.5,0.405504]
[1761642809574,0.1,4116.1,4115.5,0.405504]
[1761642809886,2.52952225,4116.1,4116.0,0.1208]
[1761642810384,2.60704,4116.2,4116.0,0.1208]
[1761642810575,2.70704,4116.2,4116.0,0.1208]
[1761642810776,2.42948422,4116.1,4116.0,0.1208]
[1761642811753,0.2776,4116.2,4116.0,0.1208]
[1761642811959,0.1776,4116.2,4116.0,0.1208]
[1761642812490,2.607026,4116.2,4116.0,0.1208]
[1761642812690,2.429426,4116.2,4116.0,0.1208]
[1761642812895,3.25836908,4116.5,4116.0,0.1208]
[1761642812896,2.429385,4116.3,4116.0,0.1208]
[1761642814182,2.42944336,4116.2,4116.0,0.1208]
[1761642814687,2.42948422,4116.1,4116.0,0.1208]
[1761642814893,2.42943444,4116.2,4116.0,0.1208]
[1761642815780,0.1208,4116.7,4116.1,0.42979884]
[1761642816102,0.1017,4118.0,4117.2,0.405504]
[1761642816305,2.43849495,4117.8,4117.2,0.405504]
[1761642816461,2.43849495,4117.8,4117.2,0.838504]
[1761642816659,0.01,4117.8,4117.2,0.838504]
[1761642816893,2.42855419,4117.7,4117.1,0.405504]
[1761642817301,2.42860218,4117.6,4117.0,0.405504]
[1761642818077,2.53030218,4117.6,4117.0,0.405504]
[1761642819285,0.1017,4117.6,4117.0,2.83444712]
[1761642819482,0.0002,4117.4,4117.0,2.83444712]
[1761642819689,0.0002,4117.4,4117.0,0.838504]
[1761642819888,0.0002,4117.4,4116.8,0.2355]
[1761642820697,0.0002,4117.4,4117.0,0.405504]
[1761642821464,0.0002,4117.4,4117.2,0.405504]
[1761642825900,0.0002,4117.4,4117.3,0.526304]
[1761642826789,0.0002,4117.4,4117.3,4.326304]
[1761642828408,0.1019,4117.4,4117.3,4.326304]
[1761642829030,0.0002,4117.4,4117.3,4.326304]
[1761642830637,2.42891715,4117.4,4117.3,3.8]
[1761642830831,0.1019,4117.4,4117.3,3.8]
[1761642831023,2.53061715,4117.4,4117.3,3.8]
[1761642831630,0.0002,4117.4,4117.3,4.205504]
[1761642831949,0.0002,4117.4,4117.3,4.638504]
[1761642832113,0.0002,4117.4,4117.3,0.838504]
[1761642833736,0.0002,4117.4,4117.3,0.405504]
[1761642833907,0.1019,4117.4,4117.3,0.405504]
[1761642834314,0.0002,4117.4,4117.3,0.405504]
[1761642838051,0.0002,4117.4,4117.3,4.205504]
[1761642838249,0.0002,4117.4,4117.3,4.638504]
[1761642838429,0.0002,4117.4,4117.3,4.205504]
[1761642840715,0.0002,4117.4,4117.3,4.326304]
[1761642841118,0.0002,4117.4,4117.3,4.761304]
[1761642843252,0.0002,4117.4,4117.3,4.328304]
[1761642844044,2.42794361,4117.7,4117.4,0.405504]
[1761642844241,2.52964361,4117.7,4117.6,0.1208]
[1761642846861,0.1017,4117.7,4117.6,0.1208]
[1761642847069,2.4285402,4117.7,4117.6,0.1208]
[1761642847937,2.43849844,4117.8,4117.6,0.1208]
[1761642850568,2.4285402,4117.7,4117.6,0.1208]
[1761642851262,2.43850342,4117.8,4117.6,0.1208]
[1761642851765,2.4285402,4117.7,4117.6,0.1208]
[1761642852255,0.01,4117.8,4117.7,0.405504]
[1761642852659,0.01,4117.8,4117.7,0.840104]
[1761642854836,0.01,4117.8,4117.6,0.1208]
[1761642855082,2.4285402,4117.7,4117.6,0.1208]
[1761642855260,2.5418027,4117.8,4117.6,0.1208]
[1761642855464,2.4285402,4117.7,4117.6,0.1208]
[1761642855640,2.5318402,4117.7,4117.6,0.1208]
[1761642857677,2.42871715,4117.4,4117.3,0.002]
[1761642858041,2.53201715,4117.4,4117.3,0.002]
[1761642860180,0.1033,4117.4,4117.3,0.002]
[1761642860381,2.53201715,4117.4,4117.3,0.002]
[1761642867370,2.53201715,4117.4,4117.3,3.802]
[1761642868505,2.53121715,4117.4,4117.3,3.802]
[1761642869404,2.42871715,4117.4,4117.3,3.802]
[1761642872302,0.2225,4117.7,4117.3,3.802]
[1761642872501,2.42869909,4117.5,4117.3,3.802]
[1761642873180,0.1017,4117.6,4117.4,3.8]
[1761642873381,2.42870802,4117.5,4117.4,3.8]
[1761642878103,2.42955515,4117.7,4117.4,3.8]
[1761642878504,2.42860865,4117.6,4117.4,3.8]
[1761642878813,2.42865816,4117.5,4117.4,3.8]
[1761642879222,2.42861143,4117.6,4117.4,3.8]
[1761642880614,2.42955767,4117.7,4117.4,3.8]
[1761642880997,2.42860493,4117.6,4117.4,3.8]
[1761642881820,2.42860493,4117.6,4117.4,0.4683]
[1761642881988,2.42865816,4117.5,4117.4,0.4683]
[1761642882185,2.42865816,4117.5,4117.3,0.1228]
[1761642882388,2.4286065,4117.6,4117.3,0.5911]
[1761642882600,0.001,4117.7,4117.3,0.5911]
[1761642882799,2.42862265,4117.6,4117.3,0.5911]
[1761642883032,2.42958126,4117.7,4117.4,0.4683]
[1761642883524,2.42861438,4117.6,4117.4,0.4683]
[1761642884179,2.42956212,4117.7,4117.4,0.4683]
[1761642884315,2.42956212,4117.7,4117.3,3.9228]
[1761642884316,2.42865816,4117.5,4117.3,3.9228]
[1761642884513,2.42865816,4117.5,4117.3,4.3911]
[1761642884905,2.42861405,4117.6,4117.3,4.3911]
[1761642885813,0.0991,4117.5,4117.3,0.002]
[1761642886327,2.42871715,4117.4,4117.3,0.002]
[1761642886919,2.52781715,4117.4,4117.3,0.002]
[1761642889929,2.42871715,4117.4,4117.3,0.002]
[1761642890129,0.0744,4117.5,4117.3,0.002]
[1761642890335,2.50310308,4117.5,4117.3,0.002]
[1761642890536,0.0744,4117.5,4117.3,0.002]
[1761642890849,0.0744,4117.5,4117.4,0.5891]
[1761642891213,0.0744,4117.5,4117.4,0.1208]
[1761642893049,0.0736,4117.5,4117.4,0.1208]
[1761642894232,2.50225816,4117.5,4117.4,0.1208]
[1761642895317,2.60215816,4117.5,4117.4,0.1208]
[1761642896248,2.50225816,4117.5,4117.4,3.9208]
[1761642896546,2.50225816,4117.5,4117.4,3.8]
[1761642896547,2.60215816,4117.5,4117.4,3.8]
[1761642899660,2.42871715,4117.4,4117.3,3.802]
[1761642899953,0.0736,4117.5,4117.4,0.5891]
[1761642900756,0.0736,4117.5,4117.4,3.42332115]
[1761642904340,0.0736,4117.5,4117.4,0.994604]
[1761642904540,0.0736,4117.5,4117.4,3.42332115]
[1761642905955,0.0736,4117.5,4117.4,0.994604]
[1761642906388,0.0736,4117.5,4117.4,3.42332115]
[1761642907995,0.0736,4117.5,4117.4,0.994604]
[1761642908205,0.0736,4117.5,4117.4,0.526304]
[1761642908487,0.0736,4117.5,4117.3,0.002]
[1761642908488,0.1751,4117.5,4117.3,0.002]
[1761642908683,0.0736,4117.5,4117.3,0.002]
[1761642909245,0.0736,4117.5,4117.4,0.859904]
[1761642912658,0.0746,4117.5,4117.4,0.859904]
[1761642917370,0.0738,4117.5,4117.4,0.859904]
[1761642918381,0.0738,4117.5,4117.4,0.980704]
[1761642918899,0.0738,4117.5,4117.4,0.526304]
[1761642925614,0.0738,4117.5,4117.4,0.1208]
[1761642925904,2.60315816,4117.5,4117.4,0.1208]
[1761642926488,2.50245816,4117.5,4117.4,0.1208]
[1761642927320,2.42871715,4117.4,4117.3,0.002]
[1761642927517,8.33124279,4117.4,4117.3,0.002]
[1761642928039,8.42844801,4117.4,4117.3,0.002]
[1761642936646,4.08112237,4117.4,4117.3,0.002]
[1761642936863,0.09720522,4117.4,4117.3,0.002]
[1761642937064,0.0738,4117.5,4117.3,3.802]
[1761642937464,2.50247051,4117.5,4117.3,3.802]
[1761642937647,0.0738,4117.5,4117.3,3.802]
[1761642937949,2.50247594,4117.5,4117.3,3.802]
[1761642938330,2.42871715,4117.4,4117.3,3.802]
[1761642938937,2.50246917,4117.5,4117.3,3.802]
[1761642939645,2.42871715,4117.4,4117.3,0.002]
[1761642940246,2.50246979,4117.5,4117.3,0.002]
[1761642940464,0.0738,4117.5,4117.3,0.002]
[1761642940629,2.50247039,4117.5,4117.3,0.002]
[1761642941769,2.42871715,4117.4,4117.3,0.002]
[1761642941963,2.42791715,4117.4,4117.3,0.002]
[1761642942465,6.77524279,4117.4,4117.3,0.002]
[1761642942969,6.87244825,4117.4,4117.3,0.002]
[1761642950058,6.77174825,4117.4,4117.3,0.002]
[1761642950777,6.87244825,4117.4,4117.3,0.002]
[1761642953591,8.42764825,4117.4,4117.3,0.002]
[1761642954558,4.18102261,4117.4,4117.3,0.002]
[1761642954794,8.42764825,4117.4,4117.3,0.002]
[1761642956106,12.67427389,4117.4,4117.3,0.002]
[1761642956412,8.42764825,4117.4,4117.3,0.002]
[1761642956784,12.67427389,4117.4,4117.3,0.002]
[1761642957696,8.42764825,4117.4,4117.3,0.002]
[1761642958480,8.42764825,4117.4,4116.4,0.002]
[1761642958481,2.42924814,4116.5,4116.1,0.6795]
[1761642958684,2.42924814,4116.5,4116.1,4.0207]
[1761642958902,2.42924814,4116.5,4116.2,0.4588]
[1761642960192,2.42930716,4116.4,4116.2,0.4588]
[1761642960390,2.42926078,4116.5,4116.2,0.4588]
[1761642960572,2.42931367,4116.4,4116.2,0.4588]
[1761642960967,2.4292702,4116.5,4116.2,0.4588]
[1761642962495,2.42931178,4116.4,4116.2,0.4588]
[1761642962691,0.72913134,4116.6,4115.9,3.8]
[1761642962692,2.42942206,4116.3,4115.9,3.8]
[1761642962897,4.24662564,4116.4,4115.9,3.8]
[1761642963132,4.24662564,4116.4,4115.5,0.405504]
[1761642963397,4.24662564,4116.4,4116.0,0.4588]
[1761642963398,2.42937512,4116.3,4116.0,0.4588]
[1761642963711,7.40512996,4116.4,4116.0,0.4588]
[1761642965914,2.42936814,4116.3,4116.0,0.4588]
[1761642966421,2.42856814,4116.3,4116.0,0.4588]
[1761642966709,2.42907462,4116.8,4116.2,0.2176]
[1761642966890,2.42907462,4116.8,4116.3,0.4515]
[1761642967095,2.42913324,4116.7,4116.3,4.2515]
[1761642967509,2.42901212,4116.9,4116.3,4.2515]
[1761642967688,2.42901212,4116.9,4116.3,3.8]
[1761642967893,4.71324009,4117.0,4116.4,0.4515]
[1761642968217,2.42907155,4116.8,4116.4,0.4515]
[1761642968594,2.42902497,4116.9,4116.4,0.4515]
[1761642970012,4.83402718,4117.0,4116.4,0.4515]
[1761642970211,2.42912544,4116.8,4116.4,0.4515]
[1761642970917,0.84986578,4117.0,4116.4,0.4515]
[1761642971209,2.42883544,4117.2,4116.6,0.1208]
[1761642971514,0.84981972,4117.3,4116.7,3.8]
[1761642971819,0.84981972,4117.3,4116.9,0.1208]
[1761642971820,3.15781409,4117.3,4116.9,0.1208]
[1761642972197,3.15781409,4117.3,4117.0,0.4515]
[1761642972401,2.42879437,4117.3,4117.0,0.4515]
[1761642972603,0.001,4117.4,4117.0,0.4515]
[1761642972800,2.42890129,4117.1,4116.9,0.1208]
[1761642973009,2.42888794,4117.2,4116.9,0.1208]
[1761642973387,2.42888794,4117.2,4116.9,0.5723]
[1761642973987,2.42889982,4117.1,4116.9,0.5723]
[1761642974218,3.98492382,4117.4,4116.9,0.5723]
[1761642974219,2.42895312,4117.0,4116.9,0.5723]
[1761642975523,2.42895312,4117.0,4116.9,0.1208]
[1761642975819,2.42913012,4116.7,4116.6,0.1208]
[1761642976000,2.42913012,4116.7,4116.4,0.1208]
[1761642976200,2.42913012,4116.7,4116.4,0.5723]
[1761642976389,2.42913012,4116.7,4116.5,0.4515]
[1761642977805,2.42918913,4116.6,4116.5,0.4515]
[1761642978199,0.1208,4117.0,4116.4,0.1208]
[1761642978616,2.42919599,4116.6,4116.4,0.5723]
[1761642978924,2.42924814,4116.5,4116.4,0.1208]
[1761642979117,2.42930716,4116.4,4116.3,3.8]
[1761642979424,2.42942519,4116.2,4116.1,3.8]
[1761642984379,0.1208,4116.4,4116.2,0.405504]
[1761642984559,2.42895339,4117.0,4116.3,0.4515]
[1761642984762,5.10033929,4117.4,4116.3,0.4515]
[1761642984964,2.42911498,4116.8,4116.3,0.4515]
[1761642985351,2.42888799,4117.2,4116.3,0.4515]
[1761642985553,2.42902627,4116.9,4116.3,0.4515]
[1761642985953,2.42907914,4116.8,4116.3,0.4515]
[1761642986172,2.43007914,4116.8,4116.3,0.4515]
[1761642986378,0.001,4116.8,4116.3,0.4515]
[1761642986869,2.43008696,4116.8,4116.3,0.4515]
[1761642987073,0.001,4116.8,4116.1,0.2341]
[1761642987258,0.1028,4116.7,4116.1,0.002]
[1761642987438,2.42942519,4116.2,4116.1,0.002]
[1761642990013,2.42940928,4116.3,4116.1,0.002]
[1761642990800,1.5562,4116.8,4116.1,0.4535]
[1761642990801,2.42925653,4116.5,4116.1,0.4535]
[1761642991003,2.42929243,4116.5,4116.1,0.4535]
[1761642991205,1.5562,4116.8,4116.1,0.4535]
[1761642991409,2.42931624,4116.4,4116.1,0.4535]
[1761642992178,2.42930716,4116.4,4116.1,0.002]
[1761642992372,5.09933929,4116.5,4116.1,0.002]
[1761642992573,2.42942209,4116.3,4116.1,0.002]
[1761642992874,7.63141245,4116.5,4116.1,0.002]
[1761642992875,2.42930716,4116.4,4116.1,0.002]
[1761642993103,2.42937255,4116.3,4116.1,0.002]
[1761642993271,2.42937255,4116.3,4116.1,0.4535]
[1761642993602,2.42932664,4116.4,4116.1,0.6856]
[1761642994175,2.42938258,4116.3,4116.1,0.6856]
[1761642996379,2.55009935,4116.5,4116.2,4.2419]
[1761642996579,2.42932752,4116.4,4116.2,4.2419]
[1761642998422,2.42936617,4116.3,4116.2,4.2419]
[1761642998622,2.42936617,4116.3,4116.2,3.8]
[1761642999658,2.42931361,4116.4,4116.2,3.8]
[1761642999857,2.42931361,4116.4,4116.2,4.2419]
[1761643000718,2.55005578,4116.5,4116.3,0.4419]
[1761643000920,2.42930716,4116.4,4116.3,0.4419]
[1761643002319,2.42930716,4116.4,4116.3,4.2419]
[1761643004463,2.42930716,4116.4,4116.3,3.8]
[1761643005356,2.53210716,4116.4,4116.3,3.8]
[1761643005558,3.98462519,4116.2,4116.1,0.002]
[1761643005961,4.08742519,4116.2,4116.1,0.002]
[1761643009455,4.81673733,4116.2,4116.1,0.002]
[1761643015053,9.91607662,4116.2,4116.1,0.002]
[1761643015457,9.91527662,4116.2,4116.1,0.002]
[1761643017846,9.81247662,4116.2,4116.1,0.002]
[1761643018276,9.91527662,4116.2,4116.1,0.002]
[1761643021267,9.81247662,4116.2,4116.1,0.002]
[1761643021965,0.1208,4116.3,4116.1,0.002]
[1761643022161,3.98462519,4116.2,4116.1,0.002]
[1761643022360,1.5552,4116.2,4116.1,0.002]
[1761643022889,3.98462519,4116.2,4116.1,0.002]
[1761643024809,1.5552,4116.2,4116.1,0.4573]
[1761643025088,0.1208,4116.3,4116.1,0.6915]
[1761643025301,2.55016689,4116.3,4116.1,0.2362]
[1761643025786,2.55016689,4116.3,4116.2,0.4553]
[1761643025787,0.1208,4116.3,4116.2,0.4553]
[1761643026369,0.001,4116.4,4116.2,2.88467701]
[1761643026565,0.001,4116.4,4116.2,0.5761]
[1761643026790,0.001,4116.4,4116.3,0.4553]
[1761643031623,0.001,4116.4,4116.3,4.2553]
[1761643034026,0.001,4116.4,4116.3,3.8]
[1761643034027,6.67996163,4116.4,4116.3,3.8]
[1761643035996,2.43030716,4116.4,4116.3,4.2399]
[1761643036403,0.001,4116.4,4116.3,4.2399]
[1761643039844,0.0002,4116.4,4116.3,4.2399]
[1761643042249,0.0002,4116.4,4116.3,6.66926617]
[1761643042852,0.0002,4116.4,4116.3,4.2399]
[1761643046164,0.0002,4116.4,4116.3,6.66926617]
[1761643046456,0.0002,4116.4,4116.3,4.2399]
[1761643046856,0.0002,4116.4,4116.3,6.66926617]
[1761643047059,0.0002,4116.4,4116.3,7.07477017]
[1761643048865,0.0002,4116.4,4116.3,4.645404]
[1761643049052,0.0002,4116.4,4116.3,7.07477017]
[1761643050883,0.0002,4116.4,4116.3,4.645404]
[1761643051592,0.0002,4116.4,4116.3,7.09906383]
[1761643051753,0.0002,4116.4,4116.3,7.19557017]
[1761643051952,0.0002,4116.4,4116.3,7.29275697]
[1761643056488,0.0002,4116.4,4116.3,7.19557017]
[1761643060397,0.0002,4116.4,4116.3,7.19757017]
[1761643060779,0.0002,4116.4,4116.3,11.44722464]
[1761643061178,0.0002,4116.4,4116.3,13.00242464]
[1761643062670,0.0002,4116.4,4116.3,13.09960719]
[1761643065484,0.0004,4116.5,4116.4,7.10291116]
[1761643073945,0.0004,4116.5,4116.4,7.10291116]
[1761643078851,0.0004,4116.5,4116.4,13.41291116]
[1761643079345,0.0004,4116.5,4116.4,13.51008521]
[1761643081341,0.0004,4116.5,4116.4,15.06528521]
[1761643082366,0.001,4116.8,4116.7,2.42913012]
[1761643082937,0.001,4116.8,4116.7,4.38983412]
[1761643083138,0.001,4116.8,4116.7,4.85793412]
[1761643084269,0.001,4116.8,4116.7,4.38983412]
[1761643084637,0.001,4116.8,4116.7,4.41412542]
[1761643084833,0.001,4116.8,4116.7,4.87902542]
[1761643085147,0.001,4116.8,4116.7,4.85473412]
[1761643087383,0.001,4116.9,4116.8,6.63357512]
[1761643087587,0.001,4116.9,4116.8,7.10107512]
[1761643088285,0.001,4116.9,4116.8,11.35072959]
[1761643088488,0.001,4116.9,4116.8,7.10107512]
[1761643088889,0.0002,4116.9,4116.8,7.10107512]
[1761643089061,0.0002,4116.9,4116.8,12.90592959]
[1761643089788,0.0002,4116.9,4116.8,20.05957096]
[1761643090458,0.0002,4116.9,4116.8,13.74957096]
[1761643092294,0.0002,4116.9,4116.8,13.84671811]
[1761643092457,0.0002,4116.9,4116.8,13.96751811]
[1761643093689,0.0002,4116.9,4116.8,13.40287096]
[1761643093889,0.0002,4116.9,4116.8,13.46486696]
[1761643094513,0.0002,4116.9,4116.8,13.87037096]
[1761643095607,0.001,4117.0,4116.9,8.18851612]
[1761643095812,0.001,4117.0,4116.9,8.65601612]
[1761643096114,0.001,4117.0,4116.9,15.08681612]
[1761643101313,0.001,4117.3,4117.2,2.42883513]
[1761643101613,0.001,4117.3,4117.2,19.59063497]
[1761643101819,0.001,4117.3,4117.2,19.71143497]
[1761643103557,0.1009,4117.3,4117.2,10.2286]
[1761643103726,0.1009,4117.3,4117.2,10.1078]
[1761643104840,0.1009,4117.3,4117.1,0.405504]
[1761643105196,0.1009,4117.3,4117.0,0.405504]
[1761643105803,0.1009,4117.3,4117.1,0.405504]
[1761643106205,0.1009,4117.3,4117.0,0.405504]
[1761643107121,0.1009,4117.3,4117.0,2.83445046]
[1761643107812,0.1009,4117.3,4117.0,0.405504]
[1761643109749,0.1009,4117.3,4117.1,0.405504]
[1761643110641,0.1009,4117.3,4117.2,3.7978]
[1761643113346,0.1001,4117.3,4117.2,3.7978]
[1761643113569,0.1001,4117.3,4117.2,3.9186]
[1761643122108,0.0002,4117.3,4117.2,3.9186]
[1761643123212,0.0002,4117.3,4117.2,6.77722748]
[1761643123414,0.0002,4117.3,4117.2,6.75293913]
[1761643123985,0.0002,4117.3,4117.2,7.18773913]
[1761643124188,0.0002,4117.3,4117.2,6.75293913]
[1761643126313,0.0002,4117.3,4117.2,7.18773913]
[1761643126988,0.0002,4117.3,4117.2,6.75293913]
[1761643127391,0.0002,4117.3,4117.2,7.18773913]
[1761643127594,0.0002,4117.3,4117.2,12.28103497]
[1761643129164,0.0002,4117.3,4117.2,8.18733913]
[1761643129661,0.0002,4117.3,4117.2,8.62213913]
[1761643136169,0.0002,4117.3,4117.2,8.18733913]
[1761643137241,0.0002,4117.3,4117.2,8.62213913]
[1761643137760,0.0004,4117.4,4117.3,2.42877613]
[1761643139262,0.0004,4117.4,4117.3,6.34737613]
[1761643142877,0.0004,4117.4,4117.3,6.78217613]
[1761643143276,0.0004,4117.4,4117.3,6.34737613]
[1761643143780,0.1003,4117.4,4117.3,6.34737613]
[1761643147803,0.0004,4117.4,4117.3,6.34737613]
[1761643149284,0.1003,4117.4,4117.3,0.1208]
[1761643158109,0.0004,4117.4,4117.3,0.1208]
[1761643159518,0.1003,4117.4,4117.3,0.1208]
[1761643160419,0.0004,4117.4,4117.3,0.1208]
[1761643161823,0.0004,4117.4,4117.3,7.67504246]
[1761643162130,0.0004,4117.4,4117.3,11.4485547]
[1761643162312,0.0006,4117.5,4117.4,2.42871715]
[1761643162529,0.0006,4117.5,4117.4,2.87721715]
[1761643164262,0.0006,4117.5,4117.4,6.67501715]
[1761643164741,0.0006,4117.5,4117.4,13.39052115]
[1761643166321,0.0006,4117.5,4117.4,7.08052115]
[1761643170142,0.0006,4117.5,4117.4,8.63572115]
[1761643171226,0.0006,4117.5,4117.4,14.94572115]
[1761643174227,0.0006,4117.5,4117.4,15.06652115]
[1761643179565,1e-08,4118.0,4117.9,2.83392625]
[1761643179734,1e-08,4118.0,4117.9,12.90775961]
[1761643179934,1e-08,4118.0,4117.9,13.33157539]
[1761643180137,1e-08,4118.0,4117.9,9.08440082]
[1761643180339,1e-08,4118.0,4117.9,9.18152462]
[1761643184571,1e-08,4118.0,4117.9,9.65647861]
[1761643184768,0.07300001,4119.3,4119.2,2.83315985]
[1761643184973,1.39978,4126.6,4119.3,0.405504]
[1761643185560,4.24717457,4120.3,4118.8,4.24717457]
[1761643185757,4.44007457,4120.0,4119.0,0.405504]
[1761643185970,6.85744733,4119.7,4118.3,2.42813855]
[1761643186172,6.85744733,4119.7,4118.8,2.4278455]
[1761643186173,2.42848826,4119.5,4118.8,2.4278455]
[1761643186392,2.47754272,4119.4,4118.5,2.42804084]
[1761643186576,2.47754272,4119.4,4118.6,0.405504]
[1761643186781,2.65040183,4119.3,4118.4,0.405504]
[1761643186981,2.65040183,4119.3,4118.4,2.83361737]
[1761643186982,0.2228,4119.3,4118.4,2.83361737]
[1761643187188,2.47755051,4119.4,4118.6,0.405504]
[1761643187694,0.1511,4118.7,4118.6,2.83351351]
[1761643188893,0.2236,4118.7,4118.2,0.405504]
[1761643189094,0.0725,4118.6,4118.5,2.83357247]
[1761643189286,0.05,4119.4,4118.9,2.42779038]
[1761643189597,0.0725,4119.1,4118.9,2.42779038]
[1761643190092,0.0725,4119.1,4119.0,0.1208]
[1761643195486,0.0725,4119.1,4119.0,2.54857373]
[1761643195866,0.0725,4119.1,4119.0,2.57285146]
[1761643196400,0.0725,4119.1,4119.0,2.54857373]
[1761643197165,0.0725,4119.1,4119.0,0.1208]
[1761643199482,0.0725,4119.1,4119.0,0.1228]
[1761643202420,6.74738936,4119.1,4119.0,0.1228]
[1761643202715,6.74738936,4119.1,4119.0,0.002]
[1761643202716,6.84454146,4119.1,4119.0,0.002]
[1761643203010,6.96534146,4119.1,4119.0,0.002]
[1761643203416,2.71816689,4119.1,4119.0,0.002]
[1761643203620,0.1961521,4119.1,4119.0,0.002]
[1761643207117,0.0971521,4119.1,4119.0,0.002]
[1761643207722,0.1961521,4119.1,4119.0,0.002]
[1761643209391,0.0971521,4119.1,4119.0,6.63307773]
[1761643209593,0.001,4119.3,4119.2,2.83315985]
[1761643211226,0.0002,4119.3,4119.2,2.83315985]
[1761643215533,0.0992,4119.3,4119.2,0.405504]
[1761643215732,0.0992,4119.3,4119.0,3.7998]
[1761643216366,0.0002,4119.3,4119.2,2.42765585]
[1761643216501,0.0002,4119.3,4119.1,2.42766137]
[1761643216702,0.0002,4119.3,4119.2,2.42765585]
[1761643217518,0.0002,4119.3,4119.0,3.7998]
[1761643217723,0.0992,4119.3,4119.0,3.7998]
[1761643218031,0.0992,4119.3,4119.0,6.22755489]
[1761643219104,0.099,4119.2,4119.0,0.002]
[1761643219522,0.099,4119.2,4119.0,0.1228]
[1761643219735,0.1492,4119.1,4119.0,0.1228]
[1761643220234,0.2482,4119.1,4119.0,0.1228]
[1761643223597,0.1492,4119.1,4119.0,0.1228]
[1761643224001,0.2482,4119.1,4119.0,0.1228]
[1761643225207,0.2482,4119.1,4119.0,3.9206]
[1761643227105,0.2482,4119.1,4119.0,0.1228]
[1761643227836,2.67591479,4119.1,4119.0,0.002]
[1761643229210,4.23111479,4119.1,4119.0,0.002]
[1761643235622,4.23031479,4119.1,4119.0,0.002]
[1761643241980,6.78631479,4119.1,4119.0,0.002]
[1761643242179,4.23031479,4119.1,4119.0,0.002]
[1761643248762,5.44431479,4119.1,4119.0,0.002]
[1761643250672,5.44531479,4119.1,4119.0,0.002]
[1761643252266,3.79111479,4119.1,4119.0,0.002]
[1761643253167,3.89011479,4119.1,4119.0,0.002]
[1761643253360,3.79111479,4119.1,4119.0,0.002]
[1761643259108,5.34631479,4119.1,4119.0,0.002]
[1761643260184,5.34551479,4119.1,4119.0,0.002]
[1761643261373,5.44451479,4119.1,4119.0,0.002]
[1761643264189,5.34551479,4119.1,4119.0,0.002]
[1761643264389,5.44451479,4119.1,4119.0,0.002]
[1761643265589,5.34551479,4119.1,4119.0,0.002]
[1761643266206,5.44451479,4119.1,4119.0,0.002]
[1761643267930,4.23051479,4119.1,4119.0,0.002]
[1761643270332,4.52635503,4119.1,4119.0,0.002]
[1761643270630,4.23051479,4119.1,4119.0,0.002]
[1761643271530,4.08291479,4119.1,4119.0,0.002]
[1761643271833,3.98391479,4119.1,4119.0,0.002]
[1761643272431,2.54951479,4119.1,4119.0,0.4644]
[1761643273122,2.54951479,4119.1,4119.0,0.002]
[1761643276941,2.54951479,4119.1,4119.0,0.002]
[1761643278042,2.54951479,4119.1,4119.0,0.4644]
[1761643278531,0.1218,4119.1,4119.0,0.4644]
[1761643278734,0.001,4119.1,4119.0,0.4644]
[1761643279142,0.001,4119.1,4119.0,0.76571364]
[1761643279359,0.001,4119.1,4119.0,3.2177651]
[1761643279532,0.001,4119.1,4119.0,3.19348737]
[1761643284137,0.001,4119.1,4119.0,0.76571364]
[1761643284343,0.001,4119.1,4119.0,3.19348737]
[1761643284758,0.0002,4119.1,4119.0,4.56351364]
[1761643288640,0.0002,4119.1,4119.0,6.99128737]
[1761643290290,0.0002,4119.1,4119.0,4.56351364]
[1761643290963,0.0002,4119.1,4119.0,4.39912334]
[1761643291469,0.0002,4119.1,4119.0,6.82689707]
[1761643292241,0.0002,4119.1,4119.0,4.39912334]
[1761643292865,0.0002,4119.1,4119.0,6.82689707]
[1761643293251,0.0002,4119.1,4119.0,4.39912334]
[1761643293652,0.0002,4119.1,4119.0,6.82689707]
[1761643294385,0.0002,4119.1,4119.0,4.09911364]
[1761643294587,0.0002,4119.1,4119.0,4.54521364]
[1761643296553,0.0002,4119.1,4119.0,4.95071764]
[1761643296860,0.0002,4119.1,4119.0,7.37849137]
[1761643298187,0.0002,4119.1,4119.0,4.09911364]
[1761643298375,0.0002,4119.1,4119.0,3.7978]
[1761643301073,0.0002,4119.1,4119.0,3.7998]
[1761643301268,0.0002,4119.1,4119.0,0.002]
[1761643301473,0.0002,4119.1,4119.0,0.4481]
[1761643306808,2.42791479,4119.1,4119.0,0.4481]
[1761643307201,2.42791479,4119.1,4119.0,0.002]
[1761643307707,2.66221479,4119.1,4119.0,0.002]